{"text_format":"1","workbook":"xlsx","n_sheets":3,"sheets":["Pocetni","FP2024","Obaveze2024"],"not_rendered":{"charts":0,"images":16,"macros":1,"external_links":0,"defined_names":20,"comments":0,"pivot_tables":0},"unopened":[],"bounds":{"document_bytes":16777216,"sheet_cells":100000,"rows_first":2000,"rows_last":500,"rows_between":2000,"halvings":0,"cell_chars":16384,"cell_head_chars":4096},"cells_cut":0,"cells_raw":0,"read":"whole","date_system":"1900"}

{"sheet":"Pocetni","index":0,"n_rows":382,"n_cols":5,"rows_kept":382,"cut":false,"hidden":false,"merged":[[1,0,1,5],[0,0,0,5]]}
["Финансијски план за 2024. годину"]
["Изаберите филијалу, здравствену установу, упишите датум попуњавања, попуните податке о здравственој установи, попуните табелу и податке сачувајте кликом на дугме САЧУВАЈ (назив документа треба да буде шифра установе)"]
[]
[]
[]
[]
[null,null,"29.07.2024."]
[]
[]
[null,null,"Д.З. \" ДР ЂОРЂЕ ЛАЗИЋ\" СОМБОР"]
[null,null,"СОМБОР, МИРНА 3"]
[null,null,"08906165"]
[null,null,"106204998"]
[null,null,"840-802661-73"]
[]
[]
[]
[]
[]
[]
[]
[]
[]
[]
[]
[]
[]
[]
["05 СОМБОР",{"$f":"LEFT(A29,2)","v":"05"},null,"00205001 ДЗ АПАТИН",{"$f":"LEFT(D29,8)","v":"00205001"}]
["01 СУБОТИЦА","01","00201001 ДЗ БАЧКА ТОПОЛА","00205001 ДЗ АПАТИН"]
["02 ЗРЕЊАНИН","01","00201002 ДЗ МАЛИ ИЂОШ","00205002 ДЗ КУЛА"]
["03 КИКИНДА","01","00201004 ЗЈЗ СУБОТИЦА","00205003 ДЗ ОЏАЦИ"]
["04 ПАНЧЕВО","01","00201005 АП СУБОТИЦА","00205005 ЗЈЗ СОМБОР"]
["05 СОМБОР","01","00201006 ДЗ СУБОТИЦА","00205006 АП СОМБОР"]
["06 НОВИ САД","01","00201007 ОБ СУБОТИЦА","00205007 ДЗ СОМБОР"]
["07 СРЕМСКА МИТРОВИЦА","02","00202001 ДЗ ЖИТИШТЕ","00205008 ОБ СОМБОР"]
["08 ШАБАЦ","02","00202003 ДЗ НОВИ БЕЧЕЈ","00205009 СБ ЗА РЕХАБИЛИТАЦИЈУ ЈУНАКОВИЋ АПАТИН"]
["09 ВАЉЕВО","02","00202004 ДЗ СЕЧАЊ"]
["10 СМЕДЕРЕВО","02","00202005 ДЗ СРПСКА ЦРЊА"]
["11 ПОЖАРЕВАЦ","02","00202007 СБ ЗА РЕХАБИЛИТАЦИЈУ РУСАНДА, МЕЛЕНЦИ"]
["12 КРАГУЈЕВАЦ","02","00202008 СБ ЗА ПЛУЋНЕ БОЛЕСТИ ЗРЕЊАНИН"]
["13 ЈАГОДИНА","02","00202009 ЗЈЗ ЗРЕЊАНИН"]
["14 БОР","02","00202010 АП ЗРЕЊАНИН"]
["15 ЗАЈЕЧАР","02","00202011 ДЗ ЗРЕЊАНИН"]
["16 УЖИЦЕ","02","00202012 ОБ ЗРЕЊАНИН"]
["17 ЧАЧАК","03","00203001 ДЗ АДА"]
["18 КРАЉЕВО","03","00203002 ДЗ КАЊИЖА"]
["19 КРУШЕВАЦ","03","00203003 ДЗ НОВИ КНЕЖЕВАЦ"]
["20 НИШ","03","00203004 ДЗ ЧОКА"]
["21 ПРОКУПЉЕ","03","00203007 СБ НОВИ КНЕЖЕВАЦ"]
["22 ПИРОТ","03","00203008 СБ ЗА РЕХАБИЛИТАЦИЈУ БАЊА КАЊИЖА"]
["23 ЛЕСКОВАЦ","03","00203009 ЗЈЗ КИКИНДА"]
["24 ВРАЊЕ","03","00203010 АП КИКИНДА"]
["25 ГРАЧАНИЦА","03","00203011 ДЗ КИКИНДА"]
["28 КОСОВСКА МИТРОВИЦА","03","00203012 OБ КИКИНДА"]
["29 ГЊИЛАНЕ","03","00203013 ДЗ СЕНТА"]
["30 БЕОГРАД","03","00203014 ОБ СЕНТА"]
["33 НОВИ ПАЗАР","03","00203015 АП СЕНТА"]
[null,"04","00204001 ДЗ АЛИБУНАР"]
[null,"04","00204002 ДЗ БЕЛА ЦРКВА"]
[null,"04","00204003 ДЗ КОВАЧИЦА"]
[null,"04","00204004 ДЗ КОВИН"]
[null,"04","00204005 ДЗ ОПОВО"]
[null,"04","00204006 ДЗ ПЛАНДИШТЕ"]
[null,"04","00204009 СБ ЗА ПЛУЋНЕ БОЛЕСТИ БЕЛА ЦРКВА"]
[null,"04","00204010 СБ ЗА ПСИХИЈАТРИЈСКЕ БОЛЕСТИ ВРШАЦ"]
[null,"04","00204011 СБ ЗА ПСИХИЈАТРИЈСКЕ БОЛЕСТИ КОВИН"]
[null,"04","00204012 ЗЈЗ ПАНЧЕВО"]
[null,"04","00204013 АП ПАНЧЕВО"]
[null,"04","00204014 АП ВРШАЦ"]
[null,"04","00204015 ДЗ ВРШАЦ"]
[null,"04","00204016 ОБ ВРШАЦ"]
[null,"04","00204017 ДЗ ПАНЧЕВО"]
[null,"04","00204018 ОБ ПАНЧЕВО"]
[null,"05","00205001 ДЗ АПАТИН"]
[null,"05","00205002 ДЗ КУЛА"]
[null,"05","00205003 ДЗ ОЏАЦИ"]
[null,"05","00205005 ЗЈЗ СОМБОР"]
[null,"05","00205006 АП СОМБОР"]
[null,"05","00205007 ДЗ СОМБОР"]
[null,"05","00205008 ОБ СОМБОР"]
[null,"05","00205009 СБ ЗА РЕХАБИЛИТАЦИЈУ ЈУНАКОВИЋ АПАТИН"]
[null,"06","00206001 ДЗ БАЧ"]
[null,"06","00206002 ДЗ БАЧКА ПАЛАНКА"]
[null,"06","00206003 ДЗ БАЧКИ ПЕТРОВАЦ"]
[null,"06","00206004 ДЗ БЕОЧИН"]
[null,"06","00206005 ДЗ БЕЧЕЈ"]
[null,"06","00206006 ДЗ ЖАБАЉ"]
[null,"06","00206007 ДЗ СРБОБРАН"]
[null,"06","00206008 ДЗ ТЕМЕРИН"]
[null,"06","00206009 ДЗ ТИТЕЛ"]
[null,"06","00206010 ДЗ НОВИ САД"]
[null,"06","00206012 ЗАВОД ЗА ТРАНСФУЗИЈУ КРВИ ВОЈВОДИНЕ"]
[null,"06","00206013 СБ ЗА РЕУМАТСКЕ БОЛЕСТИ НОВИ САД"]
[null,"06","00206014 ИЗЈЗ ВОЈВОДИНЕ"]
[null,"06","00206015 ИНСТИТУТ ЗА ОНКОЛОГИЈУ ВОЈВОДИНЕ"]
[null,"06","00206016 ИНСТИТУТ ЗА ПЛУЋНЕ БОЛЕСТИ ВОЈВОДИНЕ"]
[null,"06","00206017 ИКВБ ВОЈВОДИНЕ"]
[null,"06","00206018 ИНСТИТУТ ЗА ЗЗ ДЕЦЕ И ОМЛАДИНЕ ВОЈВОДИНЕ"]
[null,"06","00206019 КЛИНИКА ЗА СТОМАТОЛОГИЈУ ВОЈВОДИНЕ"]
[null,"06","00206020 КЛИНИЧКИ ЦЕНТАР ВОЈВОДИНЕ"]
[null,"06","00206021 ЗЗЗ РАДНИКА НОВИ САД"]
[null,"06","00206022 ЗЗЗ СТУДЕНАТА НОВИ САД"]
[null,"06","00206023 ПАСТЕРОВ ЗАВОД НОВИ САД"]
[null,"06","00206024 АП НОВИ САД"]
[null,"06","00206025 ЗАВОД ЗА ХМП НОВИ САД"]
[null,"06","00206026 ДЗ ВРБАС"]
[null,"06","00206027 ОБ ВРБАС"]
[null,"06","00206028 АП ВРБАС"]
[null,"07","00207001 ДЗ ИНЂИЈА"]
[null,"07","00207002 ДЗ ПЕЋИНЦИ"]
[null,"07","00207003 ДЗ РУМА"]
[null,"07","00207004 ДЗ СТАРА ПАЗОВА"]
[null,"07","00207005 ДЗ ШИД"]
[null,"07","00207007 СБ СТАРИ СЛАНКАМЕН"]
[null,"07","00207008 ЗЈЗ СРЕМСКА МИТРОВИЦА"]
[null,"07","00207009 СБ ЗА РЕХАБИЛИТАЦИЈУ ТЕРМАЛ ВРДНИК"]
[null,"07","00207010 АП СРЕМСКА МИТРОВИЦА"]
[null,"07","00207011 ДЗ ИРИГ"]
[null,"07","00207012 ДЗ СРЕМСКА МИТРОВИЦА"]
[null,"07","00207013 ОБ СРЕМСКА МИТРОВИЦА"]
[null,"08","00208001 ДЗ БОГАТИЋ"]
[null,"08","00208002 ДЗ ЉУБОВИЈА"]
[null,"08","00208005 СБ ЗА РЕХАБИЛИТАЦИЈУ БАЊА КОВИЉАЧА"]
[null,"08","00208006 ЗЈЗ ШАБАЦ"]
[null,"08","00208007 АУ ЛОЗНИЦА"]
[null,"08","00208008 АП ШАБАЦ"]
[null,"08","00208009 ОБ ШАБАЦ"]
[null,"08","00208010 ДЗ ШАБАЦ"]
[null,"08","00208011 ДЗ ВЛАДИМИРЦИ"]
[null,"08","00208012 ДЗ КОЦЕЉЕВА"]
[null,"08","00208014 ДЗ КРУПАЊ"]
[null,"08","00208015 ДЗ МАЛИ ЗВОРНИК"]
[null,"08","00208017 ЗЦ ЛОЗНИЦА"]
[null,"09","00209001 ДЗ УБ"]
[null,"09","00209003 АП ВАЉЕВО"]
[null,"09","00209004 ДЗ ЛАЈКОВАЦ"]
[null,"09","00209005 ЗЈЗ ВАЉЕВО"]
[null,"09","00209008 ДЗ ОСЕЧИНА"]
[null,"09","00209009 ДЗ ЉИГ"]
[null,"09","00209010 ДЗ МИОНИЦА"]
[null,"09","00209012 ЗЦ ВАЉЕВО"]
[null,"10","00210002 ОБ СМЕДЕРЕВСКА ПАЛАНКА"]
[null,"10","00210003 АП СМЕДЕРЕВСКА ПАЛАНКА"]
[null,"10","00210004 АП СМЕДЕРЕВО"]
[null,"10","00210005 ДЗ ВЕЛИКА ПЛАНА"]
[null,"10","00210006 ДЗ СМЕДЕРЕВСКА ПАЛАНКА"]
[null,"10","00210007 АУ ВЕЛИКА ПЛАНА"]
[null,"10","00210008 ОБ СМЕДЕРЕВО"]
[null,"10","00210009 ДЗ СМЕДЕРЕВО"]
[null,"11","00211001 ДЗ ВЕЛИКО ГРАДИШТЕ"]
[null,"11","00211002 ДЗ ЖАГУБИЦА"]
[null,"11","00211005 ЗЈЗ ПОЖАРЕВАЦ"]
[null,"11","00211006 АП ПОЖАРЕВАЦ"]
[null,"11","00211007 ДЗ ЖАБАРИ"]
[null,"11","00211008 ДЗ ГОЛУБАЦ"]
[null,"11","00211009 ДЗ КУЧЕВО"]
[null,"11","00211010 ДЗ МАЛО ЦРНИЋЕ"]
[null,"11","00211011 ДЗ ПОЖАРЕВАЦ"]
[null,"11","00211012 OБ ПОЖАРЕВАЦ"]
[null,"11","00211013 ДЗ ПЕТРОВАЦ НА МЛАВИ"]
[null,"11","00211014 ОБ ПЕТРОВАЦ НА МЛАВИ"]
[null,"12","00212001 ДЗ КРАГУЈЕВАЦ"]
[null,"12","00212002 ДЗ БАТОЧИНА"]
[null,"12","00212003 ДЗ КНИЋ"]
[null,"12","00212004 ДЗ ЛАПОВО"]
[null,"12","00212005 ДЗ РАЧА"]
[null,"12","00212006 ДЗ ТОПОЛА"]
[null,"12","00212007 ЗЦ АРАНЂЕЛОВАЦ"]
[null,"12","00212008 ЗАВОД ЗА ДЕНТАЛНУ МЕДИЦИНУ КРАГУЈЕВАЦ"]
[null,"12","00212009 СБ ЗА РЕХАБИЛИТАЦИЈУ БУКОВИЧКА БАЊА"]
[null,"12","00212010 УНИВЕРЗИТЕТСКИ КЛИНИЧКИ ЦЕНТАР КРАГУЈЕВАЦ"]
[null,"12","00212011 ИЗЈЗ КРАГУЈЕВАЦ"]
[null,"12","00212012 АП КРАГУЈЕВАЦ"]
[null,"12","00212013 АП АРАНЂЕЛОВАЦ"]
[null,"12","00212014 ЗАВОД ЗА УРГЕНТНУ МЕДИЦИНУ КРАГУЈЕВАЦ"]
[null,"13","00213001 ДЗ ДЕСПОТОВАЦ"]
[null,"13","00213002 ДЗ СВИЛАЈНАЦ"]
[null,"13","00213005 ЗЈЗ ЋУПРИЈА"]
[null,"13","00213007 ДЗ РЕКОВАЦ"]
[null,"13","00213008 ДЗ ЈАГОДИНА"]
[null,"13","00213009 ОБ ЈАГОДИНА"]
[null,"13","00213010 АП ЈАГОДИНА"]
[null,"13","00213011 ДЗ ЋУПРИЈА"]
[null,"13","00213012 ОБ ЋУПРИЈА"]
[null,"13","00213014 ДЗ ПАРАЋИН"]
[null,"13","00213015 АП ПАРАЋИН"]
[null,"13","00213016 ОБ ПАРАЋИН"]
[null,"14","00214002 ЗЦ НЕГОТИН"]
[null,"14","00214003 ЗЦ КЛАДОВО"]
[null,"14","00214005 АУ БОР"]
[null,"14","00214006 ДЗ МАЈДАНПЕК"]
[null,"14","00214007 ОБ МАЈДАНПЕК"]
[null,"14","00214008 ДЗ БОР"]
[null,"14","00214009 ОБ БОР"]
[null,"15","00215001 ДЗ БОЉЕВАЦ"]
[null,"15","00215002 ЗЦ КЊАЖЕВАЦ"]
[null,"15","00215003 ЗЦ ЗАЈЕЧАР"]
[null,"15","00215004 СБ ЗА РЕХАБИЛИТАЦИЈУ ГАМЗИГРАД"]
[null,"15","00215005 ЗЈЗ ЗАЈЕЧАР"]
[null,"15","00215006 АП ЗАЈЕЧАР"]
[null,"16","00216001 ЗЦ УЖИЦЕ"]
[null,"16","00216003 СБ ЗЛАТИБОР, ЧАЈЕТИНА"]
[null,"16","00216004 ЗЈЗ УЖИЦЕ"]
[null,"16","00216005 АП УЖИЦЕ"]
[null,"17","00217003 СБ ЗА РЕХАБИЛИТАЦИЈУ ИВАЊИЦА"]
[null,"17","00217004 ЗЈЗ ЧАЧАК"]
[null,"17","00217005 АП ЧАЧАК"]
[null,"17","00217006 АП ГОРЊИ МИЛАНОВАЦ"]
[null,"17","00217007 ДЗ ГОРЊИ МИЛАНОВАЦ"]
[null,"17","00217008 ОБ ГОРЊИ МИЛАНОВАЦ"]
[null,"17","00217009 ДЗ ЧАЧАК"]
[null,"17","00217010 ДЗ ИВАЊИЦА"]
[null,"17","00217011 ДЗ ЛУЧАНИ"]
[null,"17","00217012 ОБ ЧАЧАК"]
[null,"18","00218001 ДЗ РАШКА"]
[null,"18","00218004 ЗЈЗ КРАЉЕВО"]
[null,"33","00218005 СБ НОВИ ПАЗАР"]
[null,"18","00218006 СБ ЗА ЛЕЧЕЊЕ И РХ МЕРКУР, ВРЊАЧКА БАЊА"]
[null,"18","00218007 СБ ЗА РЕХАБИЛИТАЦИЈУ АГЕНС, МАТАРУШКА БАЊА"]
[null,"18","00218008 АУ КРАЉЕВО"]
[null,"33","00218009 ДЗ ТУТИН"]
[null,"18","00218010 ДЗ ВРЊАЧКА БАЊА"]
[null,"18","00218011 СБ ЗА ИНТЕРНЕ БОЛЕСТИ ВРЊАЧКА БАЊА"]
[null,"33","00218012 ДЗ НОВИ ПАЗАР"]
[null,"33","00218013 ОБ НОВИ ПАЗАР"]
[null,"18","00218014 ДЗ КРАЉЕВО"]
[null,"18","00218015 ОБ КРАЉЕВО"]
[null,"33","00218016 ЗЈЗ НОВИ ПАЗАР"]
[null,"33","00218017 АУ НОВИ ПАЗАР"]
[null,"19","00219001 ДЗ ТРСТЕНИК"]
[null,"19","00219003 СБ ЗА РЕХАБИЛИТАЦИЈУ РИБАРСКА БАЊА"]
[null,"19","00219004 ЗЈЗ КРУШЕВАЦ"]
[null,"19","00219005 АУ КРУШЕВАЦ"]
[null,"19","00219006 ДЗ БРУС"]
[null,"19","00219007 ДЗ АЛЕКСАНДРОВАЦ"]
[null,"19","00219008 ДЗ ЋИЋЕВАЦ"]
[null,"19","00219009 ДЗ ВАРВАРИН"]
[null,"19","00219012 ОБ КРУШЕВАЦ"]
[null,"19","00219013 ДЗ КРУШЕВАЦ"]
[null,"20","00220001 ДЗ ГАЏИН ХАН"]
[null,"20","00220002 ДЗ ДОЉЕВАЦ"]
[null,"20","00220003 ДЗ СВРЉИГ"]
[null,"20","00220004 ДЗ СОКОБАЊА"]
[null,"20","00220005 ДЗ НИШ"]
[null,"20","00220006 ДЗ МЕРОШИНА"]
[null,"20","00220007 ДЗ РАЖАЊ"]
[null,"20","00220009 СБ ГОРЊА ТОПОНИЦА"]
[null,"20","00220010 СБ ЗА НЕСПЕЦИФИЧНЕ ПЛУЋНЕ БОЛЕСТИ СОКОБАЊА"]
[null,"20","00220011 СБ ЗА ПЛУЋНЕ  БОЛЕСТИ ОЗРЕН, СОКОБАЊА"]
[null,"20","00220012 ЗАВОД ЗА УРГЕНТНУ МЕДИЦИНУ НИШ"]
[null,"20","00220013 ЗЗЗ РАДНИКА НИШ"]
[null,"20","00220014 ЗЗЗ СТУДЕНАТА НИШ"]
[null,"20","00220015 ЗАВОД ЗА ПЛУЋНЕ БОЛЕСТИ И ТУБЕРКУЛОЗУ НИШ"]
[null,"20","00220016 ЗАВОД ЗА ТРАНСФУЗИЈУ КРВИ НИШ"]
[null,"20","00220017 ЗАВОД ЗА СУДСКУ МЕДИЦИНУ НИШ"]
[null,"20","00220018 ИНСТИТУТ ЗА ЛЕЧЕЊЕ И РХ НИШКА БАЊА"]
[null,"20","00220019 УНИВЕРЗИТЕТСКИ КЛИНИЧКИ ЦЕНТАР НИШ"]
[null,"20","00220020 КЛИНИКА ЗА ДЕНТАЛНУ МЕДИЦИНУ НИШ"]
[null,"20","00220021 ИЗЈЗ НИШ"]
[null,"20","00220022 АУ НИШ"]
[null,"20","00220025 ДЗ АЛЕКСИНАЦ"]
[null,"20","00220026 ОБ АЛЕКСИНАЦ"]
[null,"20","00220028 ЗЦ АЛЕКСИНАЦ"]
[null,"21","00221001 ДЗ КУРШУМЛИЈА"]
[null,"21","00221002 ДЗ БЛАЦЕ"]
[null,"21","00221005 АП ПРОКУПЉЕ"]
[null,"21","00221006 ДЗ ЖИТОРАЂА"]
[null,"21","00221007 ДЗ ПРОКУПЉЕ"]
[null,"21","00221008 ОБ ПРОКУПЉЕ"]
[null,"21","00221009 ЗЦ ПРОКУПЉЕ"]
[null,"22","00222001 ДЗ БЕЛА ПАЛАНКА"]
[null,"22","00222003 ЗЈЗ ПИРОТ"]
[null,"22","00222004 АП ПИРОТ"]
[null,"22","00222005 ДЗ БАБУШНИЦА"]
[null,"22","00222006 ДЗ ДИМИТРОВГРАД"]
[null,"22","00222007 ДЗ ПИРОТ"]
[null,"22","00222008 ОБ ПИРОТ"]
[null,"23","00223001 ДЗ БОЈНИК"]
[null,"23","00223003 ЗЈЗ ЛЕСКОВАЦ"]
[null,"23","00223004 АП ЛЕСКОВАЦ"]
[null,"23","00223005 ДЗ ЛЕБАНЕ"]
[null,"23","00223006 СБ ЗА РЕХАБИЛИТАЦИЈУ ГЕЈЗЕР, СИЈАРИНСКА БАЊА"]
[null,"23","00223007 ДЗ ВЛАСОТИНЦЕ"]
[null,"23","00223008 ДЗ ЛЕСКОВАЦ"]
[null,"23","00223009 ОБ ЛЕСКОВАЦ"]
[null,"23","00223010 ДЗ МЕДВЕЂА"]
[null,"24","00224001 ЗЦ ВРАЊЕ"]
[null,"24","00224002 ЗЦ СУРДУЛИЦА"]
[null,"24","00224003 СБ ЗА ПЛУЋНЕ БОЛЕСТИ СУРДУЛИЦА"]
[null,"24","00224004 СБ ЗА РЕХАБИЛИТАЦИЈУ БУЈАНОВАЧКА БАЊА"]
[null,"24","00224005 СБ ЗА РЕХАБИЛИТАЦИЈУ ВРАЊСКА БАЊА"]
[null,"24","00224006 ЗЈЗ ВРАЊЕ"]
[null,"24","00224007 АП ВРАЊЕ"]
[null,"24","00224008 ДЗ ВЛАДИЧИН ХАН"]
[null,"24","00224009 ДЗ БУЈАНОВАЦ"]
[null,"24","00224010 ДЗ БОСИЛЕГРАД"]
[null,"24","00224011 АП БУЈАНОВАЦ"]
[null,"24","00224012 ДЗ ПРЕШЕВО"]
[null,"24","00224013 ДЗ ТРГОВИШТЕ"]
[null,"25","00225001 ДЗ ГРАЧАНИЦА"]
[null,"25","00225002 ДЗ ДОЊА ГУШТЕРИЦА"]
[null,"25","00225003 ДЗ КОСОВО ПОЉЕ"]
[null,"25","00225004 ДЗ ОБИЛИЋ"]
[null,"25","00225005 ДЗ ШТРПЦЕ"]
[null,"25","00225006 КБЦ ПРИШТИНА"]
[null,"25","00225007 АУ ПРИШТИНА"]
[null,"25","00225008 ЗЦ ПРИЗРЕН"]
[null,"25","00225009 ДЗ ПРИШТИНА"]
[null,"25","00225010 ДЗ ДРАГАШ"]
[null,"25","00225011 АУ ПРИЗРЕН"]
[null,"25","00225012 ДЗ ИСТОК"]
[null,"25","00225013 ЗЦ ПЕЋ"]
[null,"25","00225014 СБ ЗА ПЛУЋНЕ БОЛЕСТИ ПЕЋ"]
[null,"25","00225015 ЗЦ ЂАКОВИЦА"]
[null,"25","00225016 АУ ПЕЋ"]
[null,"25","00225017 ЗАВОД ЗА СПЕЦ. РЕХАБИЛИТАЦИЈУ ИСТОК"]
[null,"28","00228001 ДЗ ЗВЕЧАН"]
[null,"28","00228003 АП К. МИТРОВИЦА"]
[null,"28","00228004 ЗЈЗ К. МИТРОВИЦА"]
[null,"28","00228005 ДЗ ЗУБИН ПОТОК"]
[null,"28","00228006 КБЦ К.МИТРОВИЦА"]
[null,"28","00228007 АУ К.МИТРОВИЦА"]
[null,"29","00229001 АП ГЊИЛАНЕ"]
[null,"29","00229002 ЗЦ ГЊИЛАНЕ"]
[null,"30","00230001 ДЗ БАРАЈЕВО"]
[null,"30","00230002 ДЗ ВОЖДОВАЦ"]
[null,"30","00230003 ДЗ ВРАЧАР"]
[null,"30","00230004 ДЗ ГРОЦКА"]
[null,"30","00230005 ДЗ ЗВЕЗДАРА"]
[null,"30","00230006 ДЗ ЗЕМУН"]
[null,"30","00230007 ДЗ ЛАЗАРЕВАЦ"]
[null,"30","00230008 ДЗ МЛАДЕНОВАЦ"]
[null,"30","00230009 ДЗ НОВИ БЕОГРАД"]
[null,"30","00230010 ДЗ ОБРЕНОВАЦ"]
[null,"30","00230011 ДЗ ПАЛИЛУЛА"]
[null,"30","00230012 ДЗ РАКОВИЦА"]
[null,"30","00230013 ДЗ САВСКИ ВЕНАЦ"]
[null,"30","00230014 ДЗ СОПОТ"]
[null,"30","00230015 ДЗ СТАРИ ГРАД"]
[null,"30","00230016 ДЗ ЧУКАРИЦА"]
[null,"30","00230017 СБ ЗА ИНТЕРНЕ БОЛЕСТИ МЛАДЕНОВАЦ"]
[null,"30","00230018 СБ ЗА ЦЕРЕБРАЛНУ ПАРАЛИЗУ БГД"]
[null,"30","00230019 ИНСТИТУТ ЗА НЕОНАТОЛОГИЈУ БГД"]
[null,"30","00230020 СБ СВЕТИ САВА БГД"]
[null,"30","00230021 ЗАВОД ЗА УРГЕНТНУ МЕДИЦИНУ БГД"]
[null,"30","00230022 ГЗ ЗА КОЖНЕ И ВЕНЕРИЧНЕ БОЛЕСТИ БГД"]
[null,"30","00230023 ГЗ ЗА ГЕРОНТОЛОГИЈУ БГД"]
[null,"30","00230024 ГЗЈЗ БЕОГРАД"]
[null,"30","00230025 ГЗ ЗА ПЛУЋНЕ БОЛЕСТИ БГД"]
[null,"30","00230026 СБ ЗА ИНТЕРНЕ БОЛЕСТИ ЛАЗАРЕВАЦ"]
[null,"30","00230027 ЗЗЗ СТУДЕНАТА БЕОГРАД"]
[null,"30","00230028 ЗЗЗ РАДНИКА МУП БЕОГРАД"]
[null,"30","00230029 ЗАВОД ЗА БИОЦИДЕ И МЕДИЦИНСКУ ЕКОЛОГИЈУ"]
[null,"30","00230030 СБ ЗА РЕХАБИЛИТАЦИЈУ И ОРТ ПРОТЕТИКУ БГД"]
[null,"30","00230031 ИНСТИТУТ ЗА ТРАНСФУЗИЈУ КРВИ СРБИЈЕ"]
[null,"30","00230032 СБ ЗА БОЛЕСТИ ЗАВИСНОСТИ БГД"]
[null,"30","00230033 ЗАВОД ЗА ГОВОРНУ ПАТОЛОГИЈУ БГД"]
[null,"30","00230034 ИНСТИТУТ ЗА ОРТОПЕДИЈУ БАЊИЦА"]
[null,"30","00230035 КЛИНИКА ДР ЛАЗА ЛАЗАРЕВИЋ БГД"]
[null,"30","00230036 ИКВБ ДЕДИЊЕ"]
[null,"30","00230037 ИНСТИТУТ ЗА ЗЗ МАЈКЕ И ДЕТЕТА СРБИЈЕ"]
[null,"30","00230038 ИНСТИТУТ ЗА МЕНТАЛНО ЗДРАВЉЕ"]
[null,"30","00230039 ИНСТИТУТ ЗА ОНКОЛОГИЈУ И РАДИОЛОГИЈУ СРБИЈЕ"]
[null,"30","00230040 ИНСТИТУТ ЗА РЕУМАТОЛОГИЈУ БГД"]
[null,"30","00230041 ИНСТИТУТ ЗА РЕХАБИЛИТАЦИЈУ БЕОГРАД"]
[null,"30","00230042 КЛИНИКА ЗА РЕХАБИЛИТАЦИЈУ ДР М. ЗОТОВИЋ"]
[null,"30","00230043 КЛИНИКА ЗА НЕУРОЛОГИЈУ ЗА ДЕЦУ И ОМЛАДИНУ"]
[null,"30","00230044 УНИВЕРЗИТЕТСКА ДЕЧЈА КЛИНИКА БГД"]
[null,"30","00230045 ГАК НАРОДНИ ФРОНТ"]
[null,"30","00230047 КБЦ БЕЖАНИЈСКА КОСА"]
[null,"30","00230048 КБЦ ДР ДРАГИША МИШОВИЋ ДЕДИЊЕ"]
[null,"30","00230049 КБЦ ЗЕМУН"]
[null,"30","00230050 КБЦ ЗВЕЗДАРА"]
[null,"30","00230051 УНИВЕРЗИТЕТСКИ КЛИНИЧКИ ЦЕНТАР СРБИЈЕ"]
[null,"30","00230052 АПОТЕКА БЕОГРАД"]
[null,"30","00230053 ИЗЈЗ СРБИЈЕ - БАТУТ"]
[null,30,"00230054 ИНСТИТУТ ТОРЛАК"]
[null,"30","00230055 ВМА БЕОГРАД"]
[null,"30","00230057 ИНСТИТУТ ЗА МЕДИЦИНУ РАДА СРБИЈЕ"]
[null,"30","00230059 ДЗ СУРЧИН"]
[null,"12","00312001 ЗЗЗ РАДНИКА КРАГУЈЕВАЦ"]

{"sheet":"FP2024","index":1,"n_rows":536,"n_cols":11,"rows_kept":536,"cut":false,"hidden":false,"merged":[[5,3,5,4],[4,3,4,4],[8,2,8,7],[17,0,19,0],[17,1,19,1],[17,2,19,2],[17,3,17,9],[18,4,18,7],[18,8,19,8],[18,9,19,9],[18,3,19,3],[26,0,28,0],[26,1,28,1],[26,2,28,2],[85,0,87,0],[85,1,87,1],[58,0,60,0],[58,1,60,1],[85,2,87,2],[58,2,60,2],[26,3,26,9],[229,8,230,8],[27,9,28,9],[58,3,58,9],[59,3,60,3],[59,8,60,8],[59,9,60,9],[228,3,228,9],[229,4,229,7],[27,3,28,3],[85,3,85,9],[86,3,87,3],[86,8,87,8],[86,9,87,9],[27,8,28,8],[229,3,230,3],[116,8,117,8],[116,9,117,9],[115,3,115,9],[116,3,117,3],[27,4,27,7],[59,4,59,7],[169,4,169,7],[115,2,117,2],[86,4,86,7],[116,4,116,7],[228,0,230,0],[228,1,230,1],[115,0,117,0],[115,1,117,1],[141,1,143,1],[141,2,143,2],[194,1,196,1],[194,2,196,2],[168,0,170,0],[168,1,170,1],[194,3,194,9],[195,3,196,3],[195,8,196,8],[195,9,196,9],[195,4,195,7],[194,0,196,0],[141,3,141,9],[142,3,143,3],[142,8,143,8],[142,9,143,9],[141,0,143,0],[168,2,170,2],[142,4,142,7],[247,3,247,9],[248,3,249,3],[248,8,249,8],[248,9,249,9],[247,0,249,0],[247,1,249,1],[247,2,249,2],[216,3,216,9],[217,3,218,3],[217,8,218,8],[217,9,218,9],[228,2,230,2],[229,9,230,9],[217,4,217,7],[248,4,248,7],[216,0,218,0],[216,1,218,1],[216,2,218,2],[344,0,346,0],[344,1,346,1],[344,2,346,2],[283,3,283,9],[284,3,285,3],[284,8,285,8],[284,9,285,9],[283,0,285,0],[283,1,285,1],[283,2,285,2],[314,3,314,9],[315,3,316,3],[315,8,316,8],[315,9,316,9],[315,4,315,7],[284,4,284,7],[314,0,316,0],[314,1,316,1],[314,2,316,2],[395,3,395,9],[396,3,397,3],[396,8,397,8],[396,9,397,9],[395,0,397,0],[395,1,397,1],[395,2,397,2],[371,3,372,3],[371,8,372,8],[371,9,372,9],[370,0,372,0],[370,1,372,1],[370,2,372,2],[370,3,370,9],[457,0,459,0],[457,1,459,1],[457,2,459,2],[458,4,458,7],[423,3,423,9],[424,3,425,3],[424,8,425,8],[424,9,425,9],[423,0,425,0],[423,1,425,1],[423,2,425,2],[512,0,514,0],[512,1,514,1],[512,2,514,2],[512,3,512,9],[513,3,514,3],[513,8,514,8],[485,0,487,0],[485,1,487,1],[485,2,487,2],[486,4,486,7],[537,7,537,8],[537,3,537,4],[371,4,371,7],[396,4,396,7],[424,4,424,7],[168,3,168,9],[169,3,170,3],[169,8,170,8],[169,9,170,9],[345,4,345,7],[344,3,344,9],[345,3,346,3],[345,8,346,8],[345,9,346,9],[513,9,514,9],[513,4,513,7],[485,3,485,9],[486,3,487,3],[486,8,487,8],[486,9,487,9],[457,3,457,9],[458,3,459,3],[458,8,459,8],[458,9,459,9]]}
["РЕПУБЛИЧКИ ФОНД ЗА ЗДРАВСТВЕНО ОСИГУРАЊЕ - БЕОГРАД"]
["Јована Мариновића 2"]
[]
[]
["Матични број:","ПИБ:","Назив корисника средстава:","Седиште:"]
[{"$f":"MaticniBroj","v":"08906165"},{"$f":"bip","v":"106204998"},{"$f":"NazivKorisnika","v":"Д.З. \" ДР ЂОРЂЕ ЛАЗИЋ\" СОМБОР"},{"$f":"biop","v":"СОМБОР, МИРНА 3"}]
[]
[]
[null,null,"ФИНАНСИЈСКИ ПЛАН ЗА 2024. ГОДИНУ"]
[]
[]
[]
[]
[]
[]
["I. УКУПНИ ПРИХОДИ И ПРИМАЊА"]
[null,null,null,null,null,null,null,null,null,"(У хиљадама динара)"]
["Ознака ОП","Број конта","Опис","Износ планираних прихода и примања"]
[null,null,null,"Укупно                        (од 5 до 10)","Приходи и примања из буџета",null,null,null,"Из донација и помоћи","Из осталих извора"]
[null,null,null,null,"Републике","Аутономне покрајине","Општине / \nграда","ООСО"]
[1,2,3,4,5,6,7,8,9,10]
[5001,null,"ТЕКУЋИ ПРИХОДИ И ПРИМАЊА ОД ПРОДАЈЕ НЕФИНАНСИЈСКЕ ИМОВИНЕ (5002 + 5106)",{"$f":"SUM(E22:J22)","v":1021828},{"$f":"E23+E147","v":0},24738,30000,914697,17823,34570]
[5002,700000,"ТЕКУЋИ ПРИХОДИ (5003 + 5047 + 5057 + 5069 + 5094 + 5099 + 5103)",{"$f":"SUM(E23:J23)","v":1021828},{"$f":"E24+E76+E90+E102+E131+E136+E140","v":0},24738,30000,914697,17823,34570]
[5003,710000,"ПОРЕЗИ (5004 + 5008 + 5010 + 5017 + 5023 + 5030 + 5033 + 5040)",0,{"$f":"E25+E33+E35+E42+E48+E55+E58+E69","v":0},0,0,0,0,0]
[5004,711000,"ПОРЕЗ НА ДОХОДАК, ДОБИТ И КАПИТАЛНЕ ДОБИТКЕ (од 5005 до 5007)",0,{"$f":"SUM(E26:E32)","v":0},0,0,0,0,0]
[5005,711100,"Порези на доходак и капиталнe добиткe које плаћају физичка лица",0]
["Ознака ОП","Број конта","Опис","Износ планираних прихода и примања"]
[null,null,null,"Укупно                        (од 5 до 10)","Приходи и примања из буџета",null,null,null,"Из донација и помоћи","Из осталих извора"]
[null,null,null,null,"Републике","Аутономне покрајине","Општине / \nграда","ООСО"]
["1","2","3","4","5","6","7","8","9","10"]
[5006,711200,"Порези на добит и капиталне добитке које плаћају предузећа и друга правна лица",0]
[5007,711300,"Порези на доходак, добит и капиталне добитке који се не могу разврстати између физичких и правних лица",0]
[5008,712000,"ПОРЕЗ НА ФОНД ЗАРАДА (5009)",0,{"$f":"E34","v":0},0,0,0,0,0]
[5009,712100,"Порез на фонд зарада",0]
[5010,713000,"ПОРЕЗ НА ИМОВИНУ (од 5011 до 5016)",0,{"$f":"SUM(E36:E41)","v":0},0,0,0,0,0]
[5011,713100,"Периодични порези на непокретности",0]
[5012,713200,"Периодични порези на нето имовину",0]
[5013,713300,"Порези на заоставштину, наслеђе и поклон",0]
[5014,713400,"Порези на финансијске и капиталне трансакције",0]
[5015,713500,"Други једнократни порези на имовину",0]
[5016,713600,"Други периодични порези на имовину",0]
[5017,714000,"ПОРЕЗ НА ДОБРА И УСЛУГЕ (од 5018 до 5022)",0,{"$f":"SUM(E43:E47)","v":0},0,0,0,0,0]
[5018,714100,"Општи порези на добра и услуге",0]
[5019,714300,"Добит фискалних монопола",0]
[5020,714400,"Порези на појединачне услуге",0]
[5021,714500,"Порези, таксе и накнаде на употребу добара, на дозволу да се добра употребљавају или делатности обављају",0]
[5022,714600,"Други порези на добра и услуге",0]
[5023,715000,"ПОРЕЗ НА МЕЂУНАРОДНУ ТРГОВИНУ И ТРАНСАКЦИЈЕ (од 5024 до 5029)",0,{"$f":"SUM(E49:E54)","v":0},0,0,0,0,0]
[5024,715100,"Царине и друге увозне дажбине",0]
[5025,715200,"Порези на извоз",0]
[5026,715300,"Добит извозних или увозних монопола",0]
[5027,715400,"Добит по основу разлике између куповног и продајног девизног курса",0]
[5028,715500,"Порези на продају или куповину девиза",0]
[5029,715600,"Други порези на међународну трговину и трансакције",0]
[5030,716000,"ДРУГИ ПОРЕЗИ (5031 + 5032)",0,{"$f":"E56+E57","v":0},0,0,0,0,0]
[5031,716100,"Други порези које искључиво плаћају предузећа, односно предузетници",0]
[5032,716200,"Други порези које плаћају остала лица или који се не могу идентификовати",0]
[5033,717000,"АКЦИЗЕ (од 5034 до 5039)",{"$f":"SUM(E58:J58)","v":0},{"$f":"SUM(E63:E68)","v":0},0,0,0,0,0]
["Ознака ОП","Број конта","Опис","Износ планираних прихода и примања"]
[null,null,null,"Укупно                        (од 5 до 10)","Приходи и примања из буџета",null,null,null,"Из донација и помоћи","Из осталих извора"]
[null,null,null,null,"Републике","Аутономне покрајине","Општине / \nграда","ООСО"]
["1","2","3","4","5","6","7","8","9","10"]
[5034,717100,"Акцизе на деривате нафте",0]
[5035,717200,"Акцизе на дуванске прерађевине",0]
[5036,717300,"Акцизе на алкохолна пића",0]
[5037,717400,"Акцизе на освежавајућа безалкохолна пића",0]
[5038,717500,"Акциза на кафу",0]
[5039,717600,"Друге акцизе",0]
[5040,719000,"ЈЕДНОКРАТНИ ПОРЕЗ НА ЕКСТРА ПРОФИТ И ЕКСТРА ИМОВИНУ СТЕЧЕНУ КОРИШЋЕЊЕМ ПОСЕБНИХ ПОГОДНОСТИ (од 5041 до 5046)",0,{"$f":"SUM(E70:E75)","v":0},0,0,0,0,0]
[5041,719100,"Порез на доходак, добит и капиталну добит на терет физичких лица",0]
[5042,719200,"Порез на доходак, добит и капиталну добит на терет предузећа и осталих правних лица",0]
[5043,719300,"Порез на доходак, добит и капиталну добит нераспоредив између физичких и правних лица",0]
[5044,719400,"Остали једнократни порези на имовину",0]
[5045,719500,"Остали порези које плаћају искључиво предузећа и предузетници",0]
[5046,719600,"Остали порези које плаћају друга или неидентификована лица",0]
[5047,720000,"СОЦИЈАЛНИ ДОПРИНОСИ (5048 + 5053)",0,{"$f":"E77+E82","v":0},0,0,0,0,0]
[5048,721000,"ДОПРИНОСИ ЗА СОЦИЈАЛНО ОСИГУРАЊЕ (од 5049 до 5052)",0,{"$f":"SUM(E78:E81)","v":0},0,0,0,0,0]
[5049,721100,"Доприноси за социјално осигурање на терет запослених",0]
[5050,721200,"Доприноси за социјално осигурање на терет послодавца",0]
[5051,721300,"Доприноси за социјално осигурање лица која обављају самосталну делатност и незапослених лица",0]
[5052,721400,"Доприноси за социјално осигурање који се не могу разврстати",0]
[5053,722000,"ОСТАЛИ СОЦИЈАЛНИ ДОПРИНОСИ (од 5054 до 5056)",0,{"$f":"SUM(E83:E85)","v":0},0,0,0,0,0]
[5054,722100,"Социјални доприноси на терет осигураника",0]
[5055,722200,"Социјални доприноси на терет послодаваца",0]
[5056,722300,"Импутирани социјални доприноси",0]
["Ознака ОП","Број конта","Опис","Износ планираних прихода и примања"]
[null,null,null,"Укупно                        (од 5 до 10)","Приходи и примања из буџета",null,null,null,"Из донација и помоћи","Из осталих извора"]
[null,null,null,null,"Републике","Аутономне покрајине","Општине / \nграда","ООСО"]
["1","2","3",4,5,6,7,8,9,10]
[5057,730000,"ДОНАЦИЈЕ, ПОМОЋИ И ТРАНСФЕРИ (5058 + 5061 + 5066)",72531,{"$f":"E91+E94+E99","v":0},24738,30000,0,17793,0]
[5058,731000,"ДОНАЦИЈЕ ОД ИНОСТРАНИХ ДРЖАВА (5059 + 5060)",0,{"$f":"E92+E93","v":0},0,0,0,0,0]
[5059,731100,"Текуће донације од иностраних држава",0]
[5060,731200,"Капиталне донације од иностраних држава",0]
[5061,732000,"ДОНАЦИЈЕ И ПОМОЋИ ОД МЕЂУНАРОДНИХ ОРГАНИЗАЦИЈА (од 5062 до 5065)",17793,{"$f":"E95+E96+E97+E98","v":0},0,0,0,17793,0]
[5062,732100,"Текуће донације од међународних организација",17793,null,null,null,null,17793]
[5063,732200,"Капиталне донације од међународних организација",0]
[5064,732300,"Текуће помоћи од ЕУ",0]
[5065,732400,"Капиталне помоћи од ЕУ",0]
[5066,733000,"ТРАНСФЕРИ ОД ДРУГИХ НИВОА ВЛАСТИ (5067 + 5068)",54738,{"$f":"E100+E101","v":0},24738,30000,0,0,0]
[5067,733100,"Текући трансфери од других нивоа власти",{"$f":"SUM(E100:J100)","v":54738},null,24738,30000]
[5068,733200,"Капитални трансфери од других нивоа власти",0]
[5069,740000,"ДРУГИ ПРИХОДИ (5070 + 5077 + 5082 + 5089 + 5092)",34700,{"$f":"E103+E110+E115+E126+E129","v":0},0,0,100,30,34570]
[5070,741000,"ПРИХОДИ ОД ИМОВИНЕ (од 5071 до 5076)",100,{"$f":"SUM(E104:E109)","v":0},0,0,100,0,0]
[5071,741100,"Камате",0]
[5072,741200,"Дивиденде",0]
[5073,741300,"Повлачење прихода од квази корпорација",0]
[5074,741400,"Приход од имовине који припада имаоцима полиса осигурања",100,null,null,null,100]
[5075,741500,"Закуп непроизведене имовине",0]
[5076,741600,"Финансијске промене на финансијским лизинзима",0]
[5077,742000,"ПРИХОДИ ОД ПРОДАЈЕ ДОБАРА И УСЛУГА (од 5078 до 5081)",34570,{"$f":"SUM(E111:E114)","v":0},0,0,0,0,34570]
[5078,742100,"Приходи од продаје добара и услуга или закупа од стране тржишних организација",0]
[5079,742200,"Таксе и накнаде",0]
[5080,742300,"Споредне продаје добара и услуга које врше државне нетржишне јединице",34570,null,null,null,null,null,34570]
[5081,742400,"Импутиране продаје добара и услуга",0]
[5082,743000,"НОВЧАНЕ КАЗНЕ И ОДУЗЕТА ИМОВИНСКА КОРИСТ (од 5083 до 5088)",0,{"$f":"SUM(E120:E125)","v":0},0,0,0,0,0]
["Ознака ОП","Број конта","Опис","Износ планираних прихода и примања"]
[null,null,null,"Укупно                        (од 5 до 10)","Приходи и примања из буџета",null,null,null,"Из донација и помоћи","Из осталих извора"]
[null,null,null,null,"Републике","Аутономне покрајине","Општине / \nграда","ООСО"]
["1","2","3",4,5,6,7,8,9,10]
[5083,743100,"Приходи од новчаних казни за кривична дела",0]
[5084,743200,"Приходи од новчаних казни за привредне преступе",0]
[5085,743300,"Приходи од новчаних казни за прекршаје",0]
[5086,743400,"Приходи од пенала",0]
[5087,743500,"Приходи од одузете имовинске користи",0]
[5088,743900,"Остале новчане казне, пенали и приходи од одузете имовинске користи",0]
[5089,744000,"ДОБРОВОЉНИ ТРАНСФЕРИ ОД ФИЗИЧКИХ И ПРАВНИХ ЛИЦА (5090 + 5091)",30,{"$f":"E127+E128","v":0},0,0,0,30,0]
[5090,744100,"Текући добровољни трансфери од физичких и правних лица",30,null,null,null,null,30]
[5091,744200,"Капитални добровољни трансфери од физичких и правних лица",0]
[5092,745000,"МЕШОВИТИ И НЕОДРЕЂЕНИ ПРИХОДИ (5093)",0,{"$f":"E130","v":0},0,0,0,0,0]
[5093,745100,"Мешовити и неодређени приходи",0,null,null,null,null,null,0]
[5094,770000,"МЕМОРАНДУМСКЕ СТАВКЕ ЗА РЕФУНДАЦИЈУ РАСХОДА (5095 + 5097)",0,{"$f":"E132+E134","v":0},0,0,0,0,0]
[5095,771000,"МЕМОРАНДУМСКЕ СТАВКЕ ЗА РЕФУНДАЦИЈУ РАСХОДА (5096)",0,{"$f":"E133","v":0},0,0,0,0,0]
[5096,771100,"Меморандумске ставке за рефундацију расхода",0]
[5097,772000,"МЕМОРАНДУМСКЕ СТАВКЕ ЗА РЕФУНДАЦИЈУ РАСХОДА ИЗ ПРЕТХОДНЕ ГОДИНЕ (5098)",0,{"$f":"E135","v":0},0,0,0,0,0]
[5098,772100,"Меморандумске ставке за рефундацију расхода из претходне године",0]
[5099,780000,"ТРАНСФЕРИ ИЗМЕЂУ БУЏЕТСКИХ КОРИСНИКА НА ИСТОМ НИВОУ (5100)",{"$f":"SUM(E136:J136)","v":914597},{"$f":"E137","v":0},0,0,914597,0,0]
[5100,781000,"ТРАНСФЕРИ ИЗМЕЂУ БУЏЕТСКИХ КОРИСНИКА НА ИСТОМ НИВОУ (5101 + 5102)",914597,{"$f":"E138+E139","v":0},0,0,914597,0,0]
[5101,781100,"Трансфери између буџетских корисника на истом нивоу",914597,null,null,null,914597]
[5102,781300,"Трансфери између организација обавезног социјалног осигурања",0]
[5103,790000,"ПРИХОДИ ИЗ БУЏЕТА (5104)",0,{"$f":"E141","v":0},0,0,0,0,0]
[5104,791000,"ПРИХОДИ ИЗ БУЏЕТА (5105)",0,{"$f":"E146","v":0},0,0,0,0,0]
["Ознака ОП","Број конта","Опис","Износ планираних прихода и примања"]
[null,null,null,"Укупно                        (од 5 до 10)","Приходи и примања из буџета",null,null,null,"Из донација и помоћи","Из осталих извора"]
[null,null,null,null,"Републике","Аутономне покрајине","Општине / \nграда","ООСО"]
["1","2","3",4,5,6,7,8,9,10]
[5105,791100,"Приходи из буџета",{"$f":"SUM(E146:J146)","v":0}]
[5106,800000,"ПРИМАЊА ОД ПРОДАЈЕ НЕФИНАНСИЈСКЕ ИМОВИНЕ (5107 + 5114 + 5121 + 5124)",0,{"$f":"E148+E155+E162+E165","v":0},0,0,0,0,0]
[5107,810000,"ПРИМАЊА ОД ПРОДАЈЕ ОСНОВНИХ СРЕДСТАВА (5108 + 5110 + 5112)",0,{"$f":"E149+E151+E153","v":0},0,0,0,0,0]
[5108,811000,"ПРИМАЊА ОД ПРОДАЈЕ НЕПОКРЕТНОСТИ (5109)",0,{"$f":"E150","v":0},0,0,0,0,0]
[5109,811100,"Примања од продаје непокретности",0]
[5110,812000,"ПРИМАЊА ОД ПРОДАЈЕ ПОКРЕТНЕ ИМОВИНЕ (5111)",0,{"$f":"E152","v":0},0,0,0,0,0]
[5111,812100,"Примања од продаје покретне имовине",0]
[5112,813000,"ПРИМАЊА ОД ПРОДАЈЕ ОСТАЛИХ ОСНОВНИХ СРЕДСТАВА (5113)",0,{"$f":"E154","v":0},0,0,0,0,0]
[5113,813100,"Примања од продаје осталих основних средстава",0]
[5114,820000,"ПРИМАЊА ОД ПРОДАЈЕ ЗАЛИХА (5115 + 5117 + 5119)",0,{"$f":"E156+E158+E160","v":0},0,0,0,0,0]
[5115,821000,"ПРИМАЊА ОД ПРОДАЈЕ РОБНИХ РЕЗЕРВИ (5116)",0,{"$f":"E157","v":0},0,0,0,0,0]
[5116,821100,"Примања од продаје робних резерви",0]
[5117,822000,"ПРИМАЊА ОД ПРОДАЈЕ ЗАЛИХА  ПРОИЗВОДЊЕ (5118)",0,{"$f":"E159","v":0},0,0,0,0,0]
[5118,822100,"Примања од продаје залиха производње",0]
[5119,823000,"ПРИМАЊА ОД ПРОДАЈЕ РОБЕ ЗА ДАЉУ ПРОДАЈУ (5120)",0,{"$f":"E161","v":0},0,0,0,0,0]
[5120,823100,"Примања од продаје робе за даљу продају",0]
[5121,830000,"ПРИМАЊА ОД ПРОДАЈЕ ДРАГОЦЕНОСТИ (5122)",0,{"$f":"E163","v":0},0,0,0,0,0]
[5122,831000,"ПРИМАЊА ОД ПРОДАЈЕ ДРАГОЦЕНОСТИ (5123)",0,0,0,0,0,0,0]
[5123,831100,"Примања од продаје драгоцености",0]
[5124,840000,"ПРИМАЊА ОД ПРОДАЈЕ ПРИРОДНЕ ИМОВИНЕ (5125 + 5127 + 5129)",0,{"$f":"E166+E168+E174","v":0},0,0,0,0,0]
[5125,841000,"ПРИМАЊА ОД ПРОДАЈЕ ЗЕМЉИШТА (5126)",0,{"$f":"E167","v":0},0,0,0,0,0]
[5126,841100,"Примања од продаје земљишта",0]
[5127,842000,"ПРИМАЊА ОД ПРОДАЈЕ ПОДЗЕМНИХ БЛАГА (5128)",0,{"$f":"E173","v":0},0,0,0,0,0]
["Ознака ОП","Број конта","Опис","Износ планираних прихода и примања"]
[null,null,null,"Укупно                        (од 5 до 10)","Приходи и примања из буџета",null,null,null,"Из донација и помоћи","Из осталих извора"]
[null,null,null,null,"Републике","Аутономне покрајине","Општине / \nграда","ООСО"]
["1","2","3",4,5,6,7,8,9,10]
[5128,842100,"Примања од продаје подземних блага",{"$f":"SUM(E173:J173)","v":0}]
[5129,843000,"ПРИМАЊА ОД ПРОДАЈЕ ШУМА И ВОДА (5130)",{"$f":"SUM(E174:J174)","v":0},{"$f":"E175","v":0},0,0,0,0,0]
[5130,843100,"Примања од продаје шума и вода",{"$f":"SUM(E175:J175)","v":0}]
[5131,900000,"ПРИМАЊА ОД ЗАДУЖИВАЊА И ПРОДАЈЕ ФИНАНСИЈСКЕ ИМОВИНЕ (5132 + 5151)",{"$f":"D177+D200","v":0},{"$f":"E177+E200","v":0},{"$f":"F177+F200","v":0},0,0,0,0,0]
[5132,910000,"ПРИМАЊА ОД ЗАДУЖИВАЊА (5133 + 5143)",{"$f":"D178+D188","v":0},0,0,0,0,0,0,0]
[5133,911000,"ПРИМАЊА ОД ДОМАЋИХ ЗАДУЖИВАЊА (од 5134 до 5142)",{"$f":"SUM(D179:D187)","v":0},0,0,0,0,0,0,0]
[5134,911100,"Примања од емитовања домаћих хартија од вредности, изузев акција",{"$f":"SUM(E179:J179)","v":0}]
[5135,911200,"Примања од задуживања од осталих нивоа власти",0]
[5136,911300,"Примања од задуживања од јавних финансијских институција у земљи",0]
[5137,911400,"Примања од задуживања од пословних банака у земљи",0]
[5138,911500,"Примања од задуживања код осталих поверилаца у земљи",0]
[5139,911600,"Примања од задуживања од домаћинстава у земљи",0]
[5140,911700,"Примања од домаћих финансијских деривата",0]
[5141,911800,"Примања од домаћих меница",0]
[5142,911900,"Исправка унутрашњег дуга",0]
[5143,912000,"ПРИМАЊА ОД ИНОСТРАНОГ ЗАДУЖИВАЊА (од 5144 до 5150)",0,{"$f":"SUM(E189:E199)","v":0},0,0,0,0,0]
[5144,912100,"Примања од емитовања хартија од вредности, изузев акција, на иностраном финансијском тржишту",0]
[5145,912200,"Примања од задуживања од иностраних држава",0]
[5146,912300,"Примања од задуживања од мултилатералних институција",0]
[5147,912400,"Примања од задуживања од иностраних пословних банака",0]
[5148,912500,"Примања од задуживања од осталих иностраних поверилаца",0]
[5149,912600,"Примања од иностраних финансијских деривата",0]
["Ознака ОП","Број конта","Опис","Износ планираних прихода и примања"]
[null,null,null,"Укупно                        (од 5 до 10)","Приходи и примања из буџета",null,null,null,"Из донација и помоћи","Из осталих извора"]
[null,null,null,null,"Републике","Аутономне покрајине","Општине / \nграда","ООСО"]
["1","2","3",4,"5","6","7","8","9","10"]
[5150,912900,"Исправка спољног дуга",0]
[5151,920000,"ПРИМАЊА ОД ПРОДАЈЕ ФИНАНСИЈСКЕ ИМОВИНЕ (5152 + 5162)",0,{"$f":"E201+E211","v":0},0,0,0,0,0]
[5152,921000,"ПРИМАЊА ОД ПРОДАЈЕ ДОМАЋЕ ФИНАНСИЈСКЕ ИМОВИНЕ (од 5153 до 5161) ",0,{"$f":"SUM(E202:E210)","v":0},0,0,0,0,0]
[5153,921100,"Примања од продаје домаћих хартија од вредности, изузев акција",0]
[5154,921200,"Примања од отплате кредита датих осталим нивоима власти",0]
[5155,921300,"Примања од отплате кредита датих домаћим јавним финансијским институцијама",0]
[5156,921400,"Примања од отплате кредита домаћим пословним банкама",0]
[5157,921500,"Примања од отплате кредита датих домаћим јавним нефинансијским институцијама",0]
[5158,921600,"Примања од отплате кредита датих физичким лицима и домаћинствима у земљи",0]
[5159,921700,"Примања од отплате кредита датих удружењима грађана у земљи",0]
[5160,921800,"Примања од отплате кредита датих нефинансијским приватним предузећима у земљи",0]
[5161,921900,"Примања од продаје домаћих акција и осталог капитала",0]
[5162,922000,"ПРИМАЊА ОД ПРОДАЈЕ СТРАНЕ ФИНАНСИЈСКЕ ИМОВИНЕ (од 5163 до 5170)",{"$f":"SUM(E211:J211)","v":0},{"$f":"SUM(E212:E223)","v":0},0,0,0,0,0]
[5163,922100,"Примања од продаје страних хартија од вредности, изузев акција",{"$f":"SUM(E212:J212)","v":0}]
[5164,922200,"Примања од отплате кредита датих страним владама",0]
[5165,922300,"Примања од отплате кредита датих међународним организацијама",0]
[5166,922400,"Примања од отплате кредита датих страним пословним банкама",0]
[5167,922500,"Примања од отплате кредита датих страним нефинансијским институцијама",0]
["Ознака ОП","Број конта","Опис","Износ планираних прихода и примања"]
[null,null,null,"Укупно                        (од 5 до 10)","Приходи и примања из буџета",null,null,null,"Из донација и помоћи","Из осталих извора"]
[null,null,null,null,"Републике","Аутономне покрајине","Општине / \nграда","ООСО"]
["1","2","3",4,"5","6","7","8","9","10"]
[5168,922600,"Примања од отплате кредита датих страним невладиним организацијама",0]
[5169,922700,"Примања од продаје страних акција и осталог капитала",0]
[5170,922800,"Примања од продаје стране валуте",0]
[5171,null,"УКУПНИ ПРИХОДИ И ПРИМАЊА (5001 + 5131)",1021828,{"$f":"E22+E176","v":0},24738,30000,914697,17823,34570]
[]
[]
["II. УКУПНИ РАСХОДИ И ИЗДАЦИ"]
[null,null,null,null,null,null,null,null,"(У хиљадама динара)"]
["Ознака ОП","Број конта","Опис","Износ планираних расхода и издатака"]
[null,null,null,"Укупно           (од 5 до 10)","Расходи и издаци на терет буџета",null,null,null,"Из донација и помоћи","Из осталих извора"]
[null,null,null,null,"Републике ","Аутономне покрајине","Општине / \nграда","ООСО"]
[1,2,3,4,5,6,7,8,9,10]
[5172,null,"ТЕКУЋИ РАСХОДИ И ИЗДАЦИ ЗА НЕФИНАНСИЈСКЕ ИМОВИНЕ (5173 + 5341)",{"$f":"SUM(E233:J233)","v":1021828},{"$f":"E234+E430","v":0},24738,30000,914697,17823,34570]
[5173,400000,"ТЕКУЋИ РАСХОДИ (5174 + 5196 + 5241 + 5256 + 5280 + 5293 + 5309 + 5324)",1001151,{"$f":"E235+E261+E310+E329+E357+E370+E390+E409","v":0},14317,24600,914697,17215,30322]
[5174,410000,"РАСХОДИ ЗА ЗАПОСЛЕНЕ (5175 + 5177 + 5181 + 5183 + 5188 + 5190 + 5192 + 5194)",816358,{"$f":"E236+E238+E242+E244+E253+E255+E257+E259","v":0},0,5500,795313,65,15480]
[5175,411000,"ПЛАТЕ, ДОДАЦИ И НАКНАДЕ ЗАПОСЛЕНИХ (ЗАРАДЕ) (5176)",644926,{"$f":"E237","v":0},0,3010,632491,50,9375]
[5176,411100,"Плате, додаци и накнаде запослених",644926,null,null,3010,632491,50,9375]
[5177,412000,"СОЦИЈАЛНИ ДОПРИНОСИ НА ТЕРЕТ ПОСЛОДАВЦА (од 5178 до 5180)",107230,{"$f":"SUM(E239:E241)","v":0},0,2490,102964,8,1768]
[5178,412100,"Допринос за пензијско и инвалидско осигурање",75032,null,null,350,73546,5,1131]
[5179,412200,"Допринос за здравствено осигурање",32198,null,null,2140,29418,3,637]
[5180,412300,"Допринос за незапосленост",0]
[5181,413000,"НАКНАДЕ У НАТУРИ (5182)",0,{"$f":"E243","v":0},0,0,0,0,0]
[5182,413100,"Накнаде у натури",0,null,null,null,null,null,0]
[5183,414000,"СОЦИЈАЛНА ДАВАЊА ЗАПОСЛЕНИМА (од 5184 до 5187)",11137,{"$f":"SUM(E245:E252)","v":0},0,0,11100,0,37]
[5184,414100,"Исплата накнада за време одсуствовања с посла на терет фондова",37,null,null,null,null,null,37]
[5185,414200,"Расходи за образовање деце запослених",0]
[5186,414300,"Отпремнине и помоћи",8600,null,null,null,8600]
["Ознака ОП","Број конта","Опис","Износ планираних расхода и издатака"]
[null,null,null,"Укупно           (од 5 до 10)","Расходи и издаци на терет буџета",null,null,null,"Из донација и помоћи","Из осталих извора"]
[null,null,null,null,"Републике ","Аутономне покрајине","Општине / \nграда","ООСО"]
["1","2","3",4,"5","6","7","8","9","10"]
[5187,414400,"Помоћ у медицинском лечењу запосленог или чланова уже породице и друге помоћи запосленом",2500,null,null,null,2500]
[5188,415000,"НАКНАДА ТРОШКОВА ЗА ЗАПОСЛЕНЕ (5189)",35065,{"$f":"E254","v":0},0,0,34758,7,300]
[5189,415100,"Накнаде трошкова за запослене",35065,null,null,null,34758,7,300]
[5190,416000,"НАГРАДЕ ЗАПОСЛЕНИМА И ОСТАЛИ ПОСЕБНИ РАСХОДИ (5191)",18000,{"$f":"E256","v":0},0,0,14000,0,4000]
[5191,416100,"Награде запосленима и остали посебни расходи",18000,null,null,null,14000,null,4000]
[5192,417000,"ПОСЛАНИЧКИ ДОДАТАК (5193)",0,{"$f":"E258","v":0},0,0,0,0,0]
[5193,417100,"Посланички додатак",0]
[5194,418000,"СУДИЈСКИ ДОДАТАК (5195)",0,{"$f":"E260","v":0},0,0,0,0,0]
[5195,418100,"Судијски додатак",0]
[5196,420000,"КОРИШЋЕЊЕ УСЛУГА И РОБА (5197 + 5205 + 5211 + 5220 + 5228 + 5231) ",183703,{"$f":"E262+E270+E276+E289+E297+E300","v":0},14317,19100,119304,17150,13832]
[5197,421000,"СТАЛНИ ТРОШКОВИ (од 5198 до 5204)",34052,{"$f":"SUM(E263:E269)","v":0},0,0,33207,5,840]
[5198,421100,"Трошкови платног промета и банкарских услуга",1345,null,null,null,1200,5,140]
[5199,421200,"Енергетске услуге",23540,null,null,null,22890,null,650]
[5200,421300,"Комуналне услуге",4737,null,null,null,4687,null,50]
[5201,421400,"Услуге комуникација",3130,null,null,null,3130,null,0]
[5202,421500,"Трошкови осигурања",1300,null,null,null,1300,null,0]
[5203,421600,"Закуп имовине и опреме",0,null,null,null,null,null,0]
[5204,421900,"Остали трошкови",0]
[5205,422000,"ТРОШКОВИ ПУТОВАЊА (од 5206 до 5210)",1012,{"$f":"SUM(E271:E275)","v":0},0,0,800,0,212]
[5206,422100,"Трошкови службених путовања у земљи",50,null,null,null,null,null,50]
[5207,422200,"Трошкови службених путовања у иностранство",30,null,null,null,null,null,30]
[5208,422300,"Трошкови путовања у оквиру редовног рада",932,null,null,null,800,0,132]
[5209,422400,"Трошкови путовања ученика",0]
[5210,422900,"Остали трошкови транспорта",0]
[5211,423000,"УСЛУГЕ ПО УГОВОРУ (од 5212 до 5219)",29835,{"$f":"SUM(E277:E288)","v":0},200,270,5290,16975,7100]
[5212,423100,"Административне услуге",0]
[5213,423200,"Компјутерске услуге",3730,null,null,null,3730]
[5214,423300,"Услуге образовања и усавршавања запослених",1320,null,null,null,920,null,400]
[5215,423400,"Услуге информисања",240,null,200,null,40]
[5216,423500,"Стручне услуге",22245,null,null,270,null,16975,5000]
[5217,423600,"Услуге за домаћинство и угоститељство",600,null,null,null,600]
[5218,423700,"Репрезентација",700,null,null,null,null,null,700]
["Ознака ОП","Број конта","Опис","Износ планираних расхода и издатака"]
[null,null,null,"Укупно           (од 5 до 10)","Расходи и издаци на терет буџета",null,null,null,"Из донација и помоћи","Из осталих извора"]
[null,null,null,null,"Републике ","Аутономне покрајине","Општине / \nграда","ООСО"]
["1","2","3",4,"5","6","7","8","9","10"]
[5219,423900,"Остале опште услуге",1000,null,null,null,null,0,1000]
[5220,424000,"СПЕЦИЈАЛИЗОВАНЕ УСЛУГЕ (од 5221 до 5227)",7110,{"$f":"SUM(E290:E296)","v":0},740,5100,200,170,900]
[5221,424100,"Пољопривредне услуге",0]
[5222,424200,"Услуге образовања, културе и спорта",0]
[5223,424300,"Медицинске услуге",6370,null,null,5100,200,170,900]
[5224,424400,"Услуге одржавања аутопутева",0]
[5225,424500,"Услуге одржавања националних паркова и природних површина",0]
[5226,424600,"Услуге очувања животне средине, науке и геодетске услуге",0]
[5227,424900,"Остале специјализоване услуге",740,null,740]
[5228,425000,"ТЕКУЋЕ ПОПРАВКЕ И ОДРЖАВАЊЕ (5229 + 5230)",38137,{"$f":"E298+E299","v":0},13377,13730,9530,0,1500]
[5229,425100,"Текуће поправке и одржавање зграда и објеката",29147,null,13377,13730,1540,null,500]
[5230,425200,"Текуће поправке и одржавање опреме",8990,null,null,null,7990,null,1000]
[5231,426000,"МАТЕРИЈАЛ (од 5232 до 5240)",73557,{"$f":"SUM(E301:E309)","v":0},0,0,70277,0,3280]
[5232,426100,"Административни материјал",3700,null,null,null,3650,null,50]
[5233,426200,"Материјали за пољопривреду",0]
[5234,426300,"Материјали за образовање и усавршавање запослених",230,null,null,null,null,null,230]
[5235,426400,"Материјали за саобраћај",18900,null,null,null,18900]
[5236,426500,"Материјали за очување животне средине и науку",{"$f":"SUM(E305:J305)","v":0}]
[5237,426600,"Материјали за образовање, културу и спорт",0]
[5238,426700,"Медицински и лабораторијски материјали",44637,null,null,null,42137,null,2500]
[5239,426800,"Материјали за одржавање хигијене и угоститељство",2700,null,null,null,2700]
[5240,426900,"Материјали за посебне намене",3390,null,null,null,2890,0,500]
[5241,430000,"АМОРТИЗАЦИЈА И УПОТРЕБА СРЕДСТАВА ЗА РАД (5242 + 5246 + 5248 + 5250 + 5254)",300,{"$f":"E311+E319+E321+E323+E327","v":0},0,0,0,0,300]
[5242,431000,"АМОРТИЗАЦИЈА НЕКРЕТНИНА И ОПРЕМЕ (од 5243 до 5245)",300,{"$f":"SUM(E312:E314)","v":0},0,0,0,0,300]
[5243,431100,"Амортизација зграда и грађевинскиx објеката",0]
[5244,431200,"Амортизација опреме",300,null,null,null,null,null,300]
[5245,431300,"Амортизација осталих некретнина и опреме",0]
["Ознака ОП","Број конта","Опис","Износ планираних расхода и издатака"]
[null,null,null,"Укупно           (од 5 до 10)","Расходи и издаци на терет буџета",null,null,null,"Из донација и помоћи","Из осталих извора"]
[null,null,null,null,"Републике ","Аутономне покрајине","Општине / \nграда","ООСО"]
["1","2","3",4,5,6,7,8,9,10]
[5246,432000,"АМОРТИЗАЦИЈА КУЛТИВИСАНЕ ИМОВИНЕ (5247)",0,{"$f":"E320","v":0},0,0,0,0,0]
[5247,432100,"Амортизација култивисане опреме",0]
[5248,433000,"УПОТРЕБА ДРАГОЦЕНОСТИ (5249)",0,{"$f":"E322","v":0},0,0,0,0,0]
[5249,433100,"Употреба драгоцености",0]
[5250,434000,"УПОТРЕБА ПРИРОДНЕ ИМОВИНЕ (од 5251 до 5253)",0,{"$f":"SUM(E324:E326)","v":0},0,0,0,0,0]
[5251,434100,"Употреба земљишта",0]
[5252,434200,"Употреба подземног блага",0]
[5253,434300,"Употреба шума и вода",0]
[5254,435000,"АМОРТИЗАЦИЈА НЕМАТЕРИЈАЛНЕ ИМОВИНЕ (5255)",0,{"$f":"E328","v":0},0,0,0,0,0]
[5255,435100,"Амортизација нематеријалне имовине",0]
[5256,440000,"ОТПЛАТА КАМАТА И ПРАТЕЋИ ТРОШКОВИ ЗАДУЖИВАЊА (5257 + 5267 + 5274 + 5276)",405,{"$f":"E330+E340+E351+E353","v":0},0,0,0,0,405]
[5257,441000,"ОТПЛАТЕ ДОМАЋИХ КАМАТА (од 5258 до 5266)",0,{"$f":"SUM(E331:E339)","v":0},0,0,0,0,0]
[5258,441100,"Отплата камата на домаће хартије од вредности",0]
[5259,441200,"Отплата камата осталим нивоима власти",0]
[5260,441300,"Отплата камата домаћим јавним финансијским институцијама",0]
[5261,441400,"Отплата камата домаћим пословним банкама",0]
[5262,441500,"Отплата камата осталим домаћим кредиторима",0]
[5263,441600,"Отплата камата домаћинствима у земљи",0]
[5264,441700,"Отплата камата на домаће финансијске деривате",0]
[5265,441800,"Отплата камата на домаће менице",0]
[5266,441900,"Финансијске промене на финансијским лизинзима",0]
[5267,442000,"ОТПЛАТА СТРАНИХ КАМАТА (од 5268 до 5273)",0,{"$f":"SUM(E341:E350)","v":0},0,0,0,0,0]
[5268,442100,"Отплата камата на хартије од вредности емитоване на иностраном финансијском тржишту",0]
[5269,442200,"Отплата камата страним владама",0]
[5270,442300,"Отплата камата мултилатералним институцијама",0]
[5271,442400,"Отплата камата страним пословним банкама",0]
["Ознака ОП","Број конта","Опис","Износ планираних расхода и издатака"]
[null,null,null,"Укупно           (од 5 до 10)","Расходи и издаци на терет буџета",null,null,null,"Из донација и помоћи","Из осталих извора"]
[null,null,null,null,"Републике ","Аутономне покрајине","Општине / \nграда","ООСО"]
["1","2","3",4,"5","6","7","8","9","10"]
[5272,442500,"Отплата камата осталим страним кредиторима",0]
[5273,442600,"Отплата камата на стране финансијске деривате",0]
[5274,443000,"ОТПЛАТА КАМАТА ПО ГАРАНЦИЈАМА (5275)",0,{"$f":"E352","v":0},0,0,0,0,0]
[5275,443100,"Отплата камата по гаранцијама",0]
[5276,444000,"ПРАТЕЋИ ТРОШКОВИ ЗАДУЖИВАЊА (од 5277 до 5279)",405,{"$f":"SUM(E354:E356)","v":0},0,0,0,0,405]
[5277,444100,"Негативне курсне разлике",0]
[5278,444200,"Казне за кашњење",400,null,null,null,null,null,400]
[5279,444300,"Остали пратећи трошкови задуживања",5,null,null,null,null,null,5]
[5280,450000,"СУБВЕНЦИЈЕ (5281 + 5284 + 5287 + 5290)",0,{"$f":"E358+E361+E364+E367","v":0},0,0,0,0,0]
[5281,451000,"СУБВЕНЦИЈЕ ЈАВНИМ НЕФИНАНСИЈСКИМ ПРЕДУЗЕЋИМА И ОРГАНИЗАЦИЈАМА (5282 + 5283)",0,{"$f":"E359+E360","v":0},0,0,0,0,0]
[5282,451100,"Текуће субвенције јавним нефинансијским предузећима и организацијама",0]
[5283,451200,"Капиталне субвенције јавним нефинансијским предузећима и организацијама",0]
[5284,452000,"СУБВЕНЦИЈЕ ПРИВАТНИМ ФИНАНСИЈСКИМ ИНСТИТУЦИЈАМА (5285 + 5286)",0,{"$f":"E362+E363","v":0},0,0,0,0,0]
[5285,452100,"Текуће субвенције приватним финансијским институцијама",0]
[5286,452200,"Капиталне субвенције приватним финансијским институцијама",0]
[5287,453000,"СУБВЕНЦИЈЕ ЈАВНИМ ФИНАНСИЈСКИМ ИНСТИТУЦИЈАМА (5288 + 5289)",0,{"$f":"E365+E366","v":0},0,0,0,0,0]
[5288,453100,"Текуће субвенције јавним финансијским институцијама",0]
[5289,453200,"Капиталне субвенције јавним финансијским институцијама",0]
[5290,454000,"СУБВЕНЦИЈЕ ПРИВАТНИМ ПРЕДУЗЕЋИМА (5291 + 5292)",0,{"$f":"E368+E369","v":0},0,0,0,0,0]
[5291,454100,"Текуће субвенције приватним предузећима",0]
[5292,454200,"Капиталне субвенције приватним предузећима",0]
[5293,460000,"ДОНАЦИЈЕ, ДОТАЦИЈЕ И ТРАНСФЕРИ (5294 + 5297 + 5300 + 5303 + 5306)",0,{"$f":"E375+E378+E381+E384+E387","v":0},0,0,0,0,0]
["Ознака ОП","Број конта","Опис","Износ планираних расхода и издатака"]
[null,null,null,"Укупно           (од 5 до 10)","Расходи и издаци на терет буџета",null,null,null,"Из донација и помоћи","Из осталих извора"]
[null,null,null,null,"Републике ","Аутономне покрајине","Општине / \nграда","ООСО"]
["1","2","3",4,5,6,7,8,9,10]
[5294,461000,"ДОНАЦИЈЕ СТРАНИМ ВЛАДАМА (5295 + 5296)",0,{"$f":"E376+E377","v":0},0,0,0,0,0]
[5295,461100,"Текуће донације страним владама",0]
[5296,461200,"Капиталне донације страним владама",0]
[5297,462000,"ДОТАЦИЈЕ МЕЂУНАРОДНИМ ОРГАНИЗАЦИЈАМА (5298 + 5299)",0,{"$f":"E379+E380","v":0},0,0,0,0,0]
[5298,462100,"Текуће дотације међународним организацијама",0]
[5299,462200,"Капиталне дотације међународним организацијама",0]
[5300,463000,"ТРАНСФЕРИ ОСТАЛИМ НИВОИМА ВЛАСТИ (5301 + 5302)",{"$f":"SUM(E381:J381)","v":0},{"$f":"E382+E383","v":0},0,0,0,0,0]
[5301,463100,"Текући трансфери осталим нивоима власти",0]
[5302,463200,"Капитални трансфери осталим нивоима власти",0]
[5303,464000,"ДОТАЦИЈЕ ОРГАНИЗАЦИЈАМА ОБАВЕЗНОГ СОЦИЈАЛНОГ ОСИГУРАЊА (5304 + 5305)",0,{"$f":"E385+E386","v":0},0,0,0,0,0]
[5304,464100,"Текуће дотације организацијама обавезног социјалног осигурања",0]
[5305,464200,"Капиталне дотације организацијама обавезног социјалног осигурања",0]
[5306,465000,"ОСТАЛЕ ДОТАЦИЈЕ И ТРАНСФЕРИ (5307 + 5308)",0,{"$f":"E388+E389","v":0},0,0,0,0,0]
[5307,465100,"Остале текуће дотације и трансфери",0]
[5308,465200,"Остале капиталне дотације и трансфери",0]
[5309,470000,"СОЦИЈАЛНО ОСИГУРАЊЕ И СОЦИЈАЛНА ЗАШТИТА (5310 + 5314)",0,{"$f":"E391+E395","v":0},0,0,0,0,0]
[5310,471000,"ПРАВА ИЗ СОЦИЈАЛНОГ ОСИГУРАЊА (ОРГАНИЗАЦИЈЕ ОБАВЕЗНОГ СОЦИЈАЛНОГ ОСИГУРАЊА) (од 5311 до 5313)",0,{"$f":"SUM(E392:E394)","v":0},0,0,0,0,0]
[5311,471100,"Права из социјалног осигурања која се исплаћују непосредно домаћинствима",0]
[5312,471200,"Права из социјалног осигурања која се исплаћују непосредно пружаоцима услуга",0]
[5313,471900,"Трансфери другим организацијама обавезног социјалног осигурања за доприносе за осигурање",0]
[5314,472000,"НАКНАДЕ ЗА СОЦИЈАЛНУ ЗАШТИТУ ИЗ БУЏЕТА (од 5315 до 5323)",0,{"$f":"SUM(E400:E408)","v":0},0,0,0,0,0]
["Ознака ОП","Број конта","Опис","Износ планираних расхода и издатака"]
[null,null,null,"Укупно           (од 5 до 10)","Расходи и издаци на терет буџета",null,null,null,"Из донација и помоћи","Из осталих извора"]
[null,null,null,null,"Републике ","Аутономне покрајине","Општине / \nграда","ООСО"]
["1","2","3",4,5,6,7,8,9,10]
[5315,472100,"Накнаде из буџета у случају болести и инвалидности",0]
[5316,472200,"Накнаде из буџета за породиљско одсуство",0]
[5317,472300,"Накнаде из буџета за децу и породицу",0]
[5318,472400,"Накнаде из буџета за случај незапослености",0]
[5319,472500,"Старосне и породичне пензије из буџета",0]
[5320,472600,"Накнаде из буџета у случају смрти",0]
[5321,472700,"Накнаде из буџета за образовање, културу, науку и спорт",0]
[5322,472800,"Накнаде из буџета за становање и живот",0]
[5323,472900,"Остале накнаде из буџета",0]
[5324,480000,"ОСТАЛИ РАСХОДИ (5325 + 5328 + 5332 + 5334 + 5337 + 5339)",385,{"$f":"E410+E413+E417+E419+E422+E428","v":0},0,0,80,0,305]
[5325,481000,"ДОТАЦИЈЕ НЕВЛАДИНИМ ОРГАНИЗАЦИЈАМА (5326 + 5327)",0,{"$f":"E411+E412","v":0},0,0,0,0,0]
[5326,481100,"Дотације непрофитним организацијама које пружају помоћ домаћинствима",0]
[5327,481900,"Дотације осталим непрофитним институцијама",0]
[5328,482000,"ПОРЕЗИ, ОБАВЕЗНЕ ТАКСЕ, КАЗНЕ, ПЕНАЛИ И КАМАТЕ (од 5329 до 5331)",385,{"$f":"SUM(E414:E416)","v":0},0,0,80,0,305]
[5329,482100,"Остали порези",125,null,null,null,25,null,100]
[5330,482200,"Обавезне таксе",60,null,null,null,55,null,5]
[5331,482300,"Новчане казне, пенали и камате",200,null,null,null,null,null,200]
[5332,483000,"НОВЧАНЕ КАЗНЕ И ПЕНАЛИ ПО РЕШЕЊУ СУДОВА (5333)",0,{"$f":"E418","v":0},0,0,0,0,0]
[5333,483100,"Новчане казне и пенали по решењу судова",0]
[5334,484000,"НАКНАДА ШТЕТЕ ЗА ПОВРЕДЕ ИЛИ ШТЕТУ НАСТАЛУ УСЛЕД ЕЛЕМЕНТАРНИХ НЕПОГОДА ИЛИ ДРУГИХ ПРИРОДНИХ УЗРОКА (5335 + 5336)",0,{"$f":"E420+E421","v":0},0,0,0,0,0]
[5335,484100,"Накнада штете за повреде или штету насталу услед елементарних непогода",0]
[5336,484200,"Накнада штете од дивљачи",0]
[5337,485000,"НАКНАДА ШТЕТЕ ЗА ПОВРЕДЕ ИЛИ ШТЕТУ НАНЕТУ ОД СТРАНЕ ДРЖАВНИХ ОРГАНА (5338)",0,{"$f":"E423","v":0},0,0,0,0,0]
[5338,485100,"Накнада штете за повреде или штету нанетих од стране државних органа",0]
["Ознака ОП","Број конта","Опис","Износ планираних расхода и издатака"]
[null,null,null,"Укупно           (од 5 до 10)","Расходи и издаци на терет буџета",null,null,null,"Из донација и помоћи","Из осталих извора"]
[null,null,null,null,"Републике ","Аутономне покрајине","Општине / \nграда","ООСО"]
["1","2","3",4,5,6,7,8,9,10]
[5339,489000,"РАСХОДИ КОЈИ СЕ ФИНАНСИРАЈУ ИЗ СРЕДСТАВА ЗА РЕАЛИЗАЦИЈУ НАЦИОНАЛНОГ ИНВЕСТИЦИОНОГ ПЛАНА (5340)",0,{"$f":"E429","v":0},0,0,0,0,0]
[5340,489100,"Расходи који се финансирају из средстава за реализацију националног инвестиционог плана",0]
[5341,500000,"ИЗДАЦИ ЗА НЕФИНАНСИЈСКУ ИМОВИНУ (5342 + 5364 + 5373 + 5376 + 5384)",20677,{"$f":"E431+E453+E466+E469+E477","v":0},10421,5400,0,608,4248]
[5342,510000,"ОСНОВНА СРЕДСТВА (5343 + 5348 + 5358 + 5360 + 5362)",20677,{"$f":"E432+E437+E447+E449+E451","v":0},10421,5400,0,608,4248]
[5343,511000,"ЗГРАДЕ И ГРАЂЕВИНСКИ ОБЈЕКТИ (од 5344 до 5347)",0,{"$f":"SUM(E433:E436)","v":0},0,0,0,0,0]
[5344,511100,"Куповина зграда и објеката",0]
[5345,511200,"Изградња зграда и објеката",0]
[5346,511300,"Капитално одржавање зграда и објеката",0]
[5347,511400,"Пројектно планирање",0]
[5348,512000,"МАШИНЕ И ОПРЕМА (од 5349 до 5357)",20416,{"$f":"SUM(E438:E446)","v":0},10421,5400,0,587,4008]
[5349,512100,"Опрема за саобраћај",9421,null,6421,3000]
[5350,512200,"Административна опрема",2280,null,null,null,null,580,1700]
[5351,512300,"Опрема за пољопривреду",0]
[5352,512400,"Опрема за заштиту животне средине",0]
[5353,512500,"Медицинска и лабораторијска опрема",8715,null,4000,2400,null,7,2308]
[5354,512600,"Опрема за образовање, културу и спорт",0]
[5355,512700,"Опрема за војску",0]
[5356,512800,"Опрема за јавну безбедност",0]
[5357,512900,"Опрема за производњу, моторна, непокретна и немоторна опрема",0]
[5358,513000,"ОСТАЛЕ НЕКРЕТНИНЕ И ОПРЕМА (5359)",261,{"$f":"E448","v":0},0,0,0,21,240]
[5359,513100,"Остале некретнине и опрема",261,null,null,null,null,21,240]
[5360,514000,"КУЛТИВИСАНА ИМОВИНА (5361)",0,{"$f":"E450","v":0},0,0,0,0,0]
[5361,514100,"Култивисана имовина",0]
[5362,515000,"НЕМАТЕРИЈАЛНА ИМОВИНА (5363)",0,{"$f":"E452","v":0},0,0,0,0,0]
[5363,515100,"Нематеријална имовина",0]
[5364,520000,"ЗАЛИХЕ (5365 + 5367 + 5371)",{"$f":"SUM(E453:J453)","v":0},{"$f":"E454+E456+E464","v":0},0,0,0,0,0]
[5365,521000,"РОБНЕ РЕЗЕРВЕ (5366)",0,{"$f":"E455","v":0},0,0,0,0,0]
[5366,521100,"Робне резерве",0]
[5367,522000,"ЗАЛИХЕ ПРОИЗВОДЊЕ (од 5368 до 5370)",0,{"$f":"SUM(E457:E463)","v":0},0,0,0,0,0]
[5368,522100,"Залихе материјала",0]
["Ознака ОП","Број конта","Опис","Износ планираних расхода и издатака"]
[null,null,null,"Укупно           (од 5 до 10)","Расходи и издаци на терет буџета",null,null,null,"Из донација и помоћи","Из осталих извора"]
[null,null,null,null,"Републике ","Аутономне покрајине","Општине / \nграда","ООСО"]
["1","2","3","4","5","6","7","8","9","10"]
[5369,522200,"Залихе недовршене производње",0]
[5370,522300,"Залихе готових производа",0]
[5371,523000,"ЗАЛИХЕ РОБЕ ЗА ДАЉУ ПРОДАЈУ (5372)",0,{"$f":"E465","v":0},0,0,0,0,0]
[5372,523100,"Залихе робе за даљу продају",0]
[5373,530000,"ДРАГОЦЕНОСТИ (5374)",0,{"$f":"E467","v":0},0,0,0,0,0]
[5374,531000,"ДРАГОЦЕНОСТИ (5375)",0,0,0,0,0,0,0]
[5375,531100,"Драгоцености",0]
[5376,540000,"ПРИРОДНА ИМОВИНА (5377 + 5379 + 5381)",0,{"$f":"E470+E472+E474","v":0},0,0,0,0,0]
[5377,541000,"ЗЕМЉИШТЕ (5378)",0,{"$f":"E471","v":0},0,0,0,0,0]
[5378,541100,"Земљиште",0]
[5379,542000,"РУДНА БОГАТСТВА (5380)",0,{"$f":"E473","v":0},0,0,0,0,0]
[5380,542100,"Копови",0]
[5381,543000,"ШУМЕ И ВОДЕ (5382 + 5383)",0,{"$f":"E475+E476","v":0},0,0,0,0,0]
[5382,543100,"Шуме",0]
[5383,543200,"Воде",0]
[5384,550000,"НЕФИНАНСИЈСКА ИМОВИНА КОЈА СЕ ФИНАНСИРА ИЗ СРЕДСТАВА ЗА РЕАЛИЗАЦИЈУ НАЦИОНАЛНОГ ИНВЕСТИЦИОНОГ ПЛАНА (5385)",0,{"$f":"E478","v":0},0,0,0,0,0]
[5385,551000,"НЕФИНАНСИЈСКА ИМОВИНА КОЈА СЕ ФИНАНСИРА ИЗ СРЕДСТАВА ЗА РЕАЛИЗАЦИЈУ НАЦИОНАЛНОГ ИНВЕСТИЦИОНОГ ПЛАНА (5386)",0,0,0,0,0,0,0]
[5386,551100,"Нефинансијска имовина која се финансира из средстава за реализацију националног инвестиционог плана",0]
[5387,600000,"ИЗДАЦИ ЗА ОТПЛАТУ ГЛАВНИЦЕ И НАБАВКУ ФИНАНСИЈСКЕ ИМОВИНЕ (5388 + 5413)",0,{"$f":"E481+E510","v":0},0,0,0,0,0]
[5388,610000,"ОТПЛАТА ГЛАВНИЦЕ (5389 + 5399 + 5407 + 5409 + 5411)",0,{"$f":"E482+E496+E504+E506+E508","v":0},0,0,0,0,0]
[5389,611000,"ОТПЛАТА ГЛАВНИЦЕ ДОМАЋИМ КРЕДИТОРИМА (од 5390 до 5398)",0,{"$f":"SUM(E483:E495)","v":0},0,0,0,0,0]
[5390,611100,"Отплата главнице умањена за дисконт на домаће хартије од вредности, изузев акција",0]
[5391,611200,"Отплата главнице осталим нивоима власти",0]
[5392,611300,"Отплата главнице домаћим јавним финансијским институцијама",0]
["Ознака ОП","Број конта","Опис","Износ планираних расхода и издатака"]
[null,null,null,"Укупно           (од 5 до 10)","Расходи и издаци на терет буџета",null,null,null,"Из донација и помоћи","Из осталих извора"]
[null,null,null,null,"Републике ","Аутономне покрајине","Општине / \nграда","ООСО"]
["1","2","3","4","5","6","7","8","9","10"]
[5393,611400,"Отплата главнице домаћим пословним банкама",0]
[5394,611500,"Отплата главнице осталим домаћим кредиторима",0]
[5395,611600,"Отплата главнице домаћинствима у земљи",0]
[5396,611700,"Отплата главнице на домаће финансијске деривате",0]
[5397,611800,"Отплата домаћих меница",0]
[5398,611900,"Исправка унутрашњег дуга",0]
[5399,612000,"ОТПЛАТА ГЛАВНИЦЕ СТРАНИМ КРЕДИТОРИМА (од 5400 до 5406)",0,{"$f":"SUM(E497:E503)","v":0},0,0,0,0,0]
[5400,612100,"Отплата главнице умањена за дисконт на хартије од вредности, изузев акција, емитоване на иностраном финансијском тржишту",0]
[5401,612200,"Отплата главнице страним владама",0]
[5402,612300,"Отплата главнице мултилатералним институцијама",0]
[5403,612400,"Отплате главнице страним пословним банкама",0]
[5404,612500,"Отплате главнице осталим страним кредиторима",0]
[5405,612600,"Отплата главнице на стране финансијске деривате",0]
[5406,612900,"Исправка спољног дуга",0]
[5407,613000,"ОТПЛАТА ГЛАВНИЦЕ ПО ГАРАНЦИЈАМА (5408)",0,{"$f":"E505","v":0},0,0,0,0,0]
[5408,613100,"Отплата главнице по гаранцијама",0]
[5409,614000,"ОТПЛАТА ГЛАВНИЦЕ ЗА ФИНАНСИЈСКИ ЛИЗИНГ (5410)",0,{"$f":"E507","v":0},0,0,0,0,0]
[5410,614100,"Отплата главнице за финансијски лизинг",0]
[5411,615000,"ОТПЛАТА ГАРАНЦИЈА ПО КОМЕРЦИЈАЛНИМ ТРАНСАКЦИЈАМА (5412)",0,0,0,0,0,0,0]
[5412,615100,"Отплата гаранција по комерцијалним трансакцијама",0]
[5413,620000,"НАБАВКА ФИНАНСИЈСКЕ ИМОВИНЕ (5414 + 5424 + 5433)",0,{"$f":"E511+E525+E534","v":0},0,0,0,0,0]
[5414,621000,"НАБАВКА ДОМАЋЕ ФИНАНСИЈСКЕ ИМОВИНЕ (од 5415 до 5423)",0,{"$f":"SUM(E512:E524)","v":0},0,0,0,0,0]
[5415,621100,"Набавка домаћих хартија од вредности, изузев акција",0]
["Ознака ОП","Број конта","Опис","Износ планираних расхода и издатака"]
[null,null,null,"Укупно           (од 5 до 10)","Расходи и издаци на терет буџета",null,null,null,"Из донација и помоћи","Из осталих извора"]
[null,null,null,null,"Републике ","Аутономне покрајине","Општине / \nграда","ООСО"]
["1","2","3",4,"5","6","7","8","9","10"]
[5416,621200,"Кредити осталим нивоима власти",0]
[5417,621300,"Кредити домаћим јавним финансијским институцијама",0]
[5418,621400,"Кредити домаћим пословним банкама",0]
[5419,621500,"Кредити домаћим нефинансијским јавним институцијама",0]
[5420,621600,"Кредити физичким лицима и домаћинствима у земљи",0]
[5421,621700,"Кредити невладиним организацијама у земљи",0]
[5422,621800,"Кредити домаћим нефинансијским приватним предузећима",0]
[5423,621900,"Набавка домаћих акција и осталог капитала",0]
[5424,622000,"НАБАВКА СТРАНЕ ФИНАНСИЈСКЕ ИМОВИНЕ (од 5425 до 5432)",0,{"$f":"SUM(E526:E533)","v":0},0,0,0,0,0]
[5425,622100,"Набавка страних хартија од вредности, изузев акција",0]
[5426,622200,"Кредити страним владама",0]
[5427,622300,"Кредити међународним организацијама",0]
[5428,622400,"Кредити страним пословним банкама",0]
[5429,622500,"Кредити страним нефинансијским институцијама",0]
[5430,622600,"Кредити страним невладиним организацијама",{"$f":"SUM(E531:J531)","v":0}]
[5431,622700,"Набавка страних акција и осталог капитала",0]
[5432,622800,"Куповина стране валуте",0]
[5433,623000,"НАБАВКА ФИНАНСИЈСКЕ ИМОВИНЕ КОЈА СЕ ФИНАНСИРА ИЗ СРЕДСТАВА ЗА РЕАЛИЗАЦИЈУ НАЦИОНАЛНОГ ИНВЕСТИЦИОНОГ ПЛАНА (5434)",0,{"$f":"E535","v":0},0,0,0,0,0]
[5434,623100,"Набавка финансијске имовине која се финансира из средстава за реализацију националног инвестиционог плана ",0]
[5435,null,"УКУПНИ РАСХОДИ И ИЗДАЦИ (5172 + 5387)",1021828,{"$f":"E233+E480","v":0},24738,30000,914697,17823,34570]

{"sheet":"Obaveze2024","index":2,"n_rows":32,"n_cols":9,"rows_kept":32,"cut":false,"hidden":false,"merged":[[23,6,24,6],[23,7,24,7],[23,8,24,8],[23,0,24,0],[23,1,24,1],[23,2,24,2],[23,3,24,3],[23,4,24,4],[23,5,24,5],[20,0,20,8],[22,1,22,2],[22,3,22,4],[22,5,22,6],[22,7,22,8],[12,2,13,2],[12,3,13,3],[12,4,13,4],[12,5,13,5],[4,0,4,6],[9,0,9,8],[11,1,11,2],[11,3,11,4],[11,5,11,6],[11,7,11,8],[12,6,13,6],[12,7,13,7],[12,8,13,8],[12,0,13,0],[12,1,13,1]]}
["РЕПУБЛИЧКИ ФОНД ЗА ЗДРАВСТВЕНО"]
["ОСИГУРАЊЕ - БЕОГРАД"]
["Јована Мариновића 2"]
[]
[]
[]
[{"$f":"\"ФИЛИЈАЛА:   \" & Filijala","v":"ФИЛИЈАЛА:   05 СОМБОР"}]
[{"$f":"\"ЗДРАВСТВЕНА УСТАНОВА:  \" & ZU","v":"ЗДРАВСТВЕНА УСТАНОВА:  00205001 ДЗ АПАТИН"}]
[]
["Процењене обавезе здравствених установа за 2024. годину које произилазе из Закона о професионалној рехабилитацији и запошљавању особа са инвалидитетом У ОДНОСУ НА БРОЈ УГОВОРЕНИХ РАДНИКА "]
[null,null,null,null,null,null,null,null,"(у динарима)"]
[null,"ПРИМАРНА ЗЗ",null,"СЕКУНДАРНА И ТЕРЦИЈАРНА ЗЗ",null,"СТОМАТОЛОШКА ЗЗ",null,"УКУПНО"]
["НАМЕНА","Број особа са инвалидитетом чије се зараде финансирају","Обавезе које произилазе из Закона ","Број особа са инвалидитетом чије се зараде финансирају","Обавезе које произилазе из Закона ","Број особа са инвалидитетом чије се зараде финансирају","Обавезе које произилазе из Закона ","Број особа са инвалидитетом чије се зараде финансирају","Обавезе које произилазе из Закона "]
[]
[1,2,3,4,5,6,7,8,9]
["ФИНАНСИРАЊЕ ИНВАЛИДА",null,null,null,null,null,null,{"$f":"+B16+D16+F16","v":0},{"$f":"+C16+E16+G16","v":0}]
[]
["Напомена: У процену обавеза треба укључити План запошљавања у складу са важећим Кадровским планом "]
[]
[]
["Процењена потребна средства за 2024. годину за исплате јубиларних награда, отпремнина и солидарних помоћи УГОВОРЕНИМ РАДНИЦИМА\n у складу са чл. 105. и 107. Посебног колективног уговора за здравствене установе чији је оснивач Република Србија, аутономна покрајина и \nјединица локалне самоуправе "]
[null,null,null,null,null,null,null,null,"(у динарима)"]
[null,"ПРИМАРНА ЗЗ",null,"СЕКУНДАРНА И ТЕРЦИЈАРНА ЗЗ",null,"СТОМАТОЛОШКА ЗЗ",null,"УКУПНО"]
["НАМЕНА","Број уговорених радника ","Потребна средства","Број уговорених радника ","Потребна средства","Број уговорених радника ","Потребна средства","Број уговорених радника ","Потребна средства"]
[]
[1,2,3,4,5,6,7,8,9]
["ЈУБИЛАРНЕ НАГРАДЕ",42,7553668,null,null,9,1832768,{"$f":"+B27+D27+F27","v":51},9386436]
["ОТПРЕМНИНЕ",8,4001437,null,null,1,386724,9,4388161]
["СОЛИДАРНЕ ПОМОЋИ",14,1030446,null,null,null,null,14,1030446]
[]
["Напомена:   Подаци се попуњавају у динарима"]
["                   За тачност података одговоран је Директор здравствене установе"]